bitfinex-derivatives/quotes_ETHF0:USTF0_20240904
["timestamp","ask_amount","ask_price","bid_price","bid_amount"]
[1725465867451,2.8112,2464.7,2462.7,3.2078]
[1725465867764,1.01502,2462.9,2461.7,3.2078]
[1725465867951,2.02949,2463.6,2462.2,3.2078]
[1725465867952,3.2078,2463.3,2462.2,3.2078]
[1725465868157,3.2078,2463.6,2462.9,0.40599]
[1725465868359,0.40591,2463.5,2463.0,1.9503]
[1725465868555,0.41199667,2463.5,2463.0,1.95638667]
[1725465868761,0.00608667,2463.5,2463.0,1.95638667]
[1725465868965,0.41199667,2463.5,2463.1,8.7453836]
[1725465869160,0.00608667,2463.5,2463.1,8.7453836]
[1725465870255,0.40592,2463.4,2463.1,8.7453836]
[1725465870456,0.41199667,2463.5,2463.1,8.7453836]
[1725465870857,0.40592,2463.4,2463.1,8.7453836]
[1725465871467,0.40594,2463.3,2463.1,8.7453836]
[1725465871768,0.40595,2463.3,2463.1,8.7453836]
[1725465871960,0.40595,2463.2,2463.1,8.7453836]
[1725465872163,0.40594,2463.3,2463.1,8.7453836]
[1725465872366,0.40595,2463.2,2463.1,8.7453836]
[1725465872559,0.40596,2463.2,2463.0,1.95638667]
[1725465872756,0.40597,2463.1,2463.0,1.95638667]
[1725465873259,0.40596,2463.2,2463.0,6.01638667]
[1725465873565,0.40597,2463.1,2463.0,1.95638667]
[1725465873862,1.4209,2463.1,2463.0,1.95638667]
[1725465874058,0.40597,2463.1,2463.0,1.30868667]
[1725465875064,0.40597,2463.1,2463.0,0.00608667]
[1725465875863,1.4209,2463.1,2463.0,0.00608667]
[1725465876061,6.49583,2463.1,2463.0,0.00608667]
[1725465876470,6.49583,2463.1,2463.0,6.67e-06]
[1725465877265,12.49583,2463.1,2463.0,6.67e-06]
[1725465878062,12.08986,2463.1,2461.4,0.20791878]
[1725465878269,4.2232,2462.0,2461.3,5.65905]
[1725465878473,0.4062,2461.7,2461.5,8.71243234]
[1725465878768,3.2078,2462.0,2461.5,8.71243234]
[1725465878970,1.0153,2462.2,2461.3,2.045]
[1725465878971,0.40624,2461.5,2461.3,2.045]
[1725465879166,0.40625,2461.4,2461.3,2.045]
[1725465879766,0.40626,2461.3,2461.2,0.00608667]
[1725465880172,10.46946,2461.3,2461.2,0.00608667]
[1725465880366,12.5008,2461.3,2460.1,0.7021]
[1725465880562,3.2078,2460.3,2460.1,0.7021]
[1725465880767,3.2078,2460.6,2460.1,0.7021]
[1725465881063,3.2078,2460.6,2459.9,0.6407]
[1725465881576,0.40645,2460.2,2460.0,0.00608667]
[1725465881775,3.62032667,2460.3,2460.0,0.00608667]
[1725465881973,3.21388667,2460.3,2460.0,0.00608667]
[1725465882163,0.40646,2460.1,2460.0,0.00608667]
[1725465882582,4.47126,2460.1,2460.0,0.00608667]
[1725465883078,10.47126,2460.1,2460.0,0.00608667]
[1725465883265,10.47126,2460.1,2460.0,6.67e-06]
[1725465883572,11.48742,2460.1,2460.0,6.67e-06]
[1725465883783,1.01623,2460.0,2458.5,3.2078]
[1725465884068,0.40658,2459.4,2458.9,8.69887851]
[1725465884575,0.40657,2459.5,2458.6,0.4067]
[1725465884769,0.40658,2459.4,2458.5,3.2078]
[1725465884970,3.2078,2459.6,2458.9,8.55278467]
[1725465885178,3.2078,2459.3,2458.8,0.00609917]
[1725465885367,0.40666,2458.9,2458.8,9.17e-06]
[1725465885671,0.61148006,2458.9,2458.8,9.17e-06]
[1725465885872,5.69534006,2458.9,2458.8,9.17e-06]
[1725465886172,14.61534006,2458.9,2458.8,9.17e-06]
[1725465887166,15.63200006,2458.9,2458.8,9.17e-06]
[1725465890671,4.67868006,2458.9,2458.8,9.17e-06]
[1725465891270,11.69534006,2458.9,2458.8,9.17e-06]
[1725465891463,14.61534006,2458.9,2458.8,9.17e-06]
[1725465891671,1.01674,2458.7,2457.8,4.5692]
[1725465891871,0.40683,2457.9,2457.8,4.5692]
[1725465892475,4.22469,2458.4,2457.2,0.40694]
[1725465892476,0.40685,2457.8,2457.2,0.40694]
[1725465892664,3.2078,2458.0,2457.1,3.8516]
[1725465892665,0.00609917,2457.7,2457.3,1.3923]
[1725465892867,0.41295917,2457.7,2457.3,1.3923]
[1725465893172,3.2078,2457.6,2457.3,1.3923]
[1725465893371,3.2078,2457.6,2457.3,1.79922]
[1725465893578,0.00609917,2457.7,2457.5,3.2078]
[1725465893774,0.00609917,2457.7,2457.4,11.55817473]
[1725465894078,0.00609917,2457.7,2457.3,1.79922]
[1725465894275,0.00609917,2457.7,2457.3,1.3923]
[1725465894574,0.40691,2457.4,2457.3,0.7069]
[1725465894972,0.40694,2457.2,2457.1,0.6438]
[1725465895272,4.22504,2457.6,2457.1,0.6438]
[1725465895572,0.40689,2457.6,2457.1,3.8516]
[1725465895775,0.40688,2457.6,2457.1,0.6438]
[1725465895969,0.00609917,2457.7,2457.1,4.25855]
[1725465896171,0.00609917,2457.7,2457.1,3.8516]
[1725465896370,0.4069,2457.5,2457.1,3.8516]
[1725465896565,0.40691,2457.4,2457.1,3.8516]
[1725465897082,0.00609917,2457.7,2457.1,3.8516]
[1725465897276,0.40694,2457.3,2457.1,3.8516]
[1725465897578,0.40694,2457.2,2457.1,3.2078]
[1725465897774,3.2078,2457.5,2456.6,4.5506]
[1725465898079,0.40692,2457.4,2456.9,3.2078]
[1725465898280,3.2078,2457.5,2456.9,3.2078]
[1725465898281,0.40693,2457.3,2456.9,3.61478]
[1725465898577,3.2078,2457.5,2457.0,0.40697]
[1725465898781,0.40694,2457.3,2456.9,3.61478]
[1725465898980,3.2078,2457.5,2457.2,0.40693]
[1725465899271,0.00609917,2457.7,2456.9,3.2078]
[1725465899272,0.00609917,2457.7,2457.0,0.40697]
[1725465899473,0.40694,2457.2,2456.9,3.61478]
[1725465899684,0.40693,2457.3,2456.9,3.61479]
[1725465899870,0.00609917,2457.7,2456.7,0.1976921]
[1725465900174,0.40688,2457.6,2457.3,3.2078]
[1725465900483,0.40688,2457.6,2457.4,1.3265]
[1725465900772,0.40689,2457.5,2457.4,5.3961]
[1725465900977,1.42413,2457.5,2457.4,1.3265]
[1725465901370,4.22504,2457.5,2456.7,3.2078]
[1725465901570,4.22504,2457.5,2456.7,4.5546]
[1725465901571,1.01728,2457.4,2456.7,4.5546]
[1725465901772,0.40696,2457.1,2456.8,0.407]
[1725465901975,0.40698,2457.0,2456.7,12.87381403]
[1725465902175,0.407,2456.9,2456.7,9.66601403]
[1725465902575,1.42454,2456.8,2456.7,1.3468]
[1725465902781,3.2078,2456.9,2456.7,1.3468]
[1725465902981,3.2078,2457.3,2456.8,4.0704]
[1725465903279,3.2078,2457.3,2456.7,4.5546]
[1725465903483,0.40697,2457.1,2456.7,4.5546]
[1725465903776,3.2078,2457.3,2456.7,1.3468]
[1725465903976,0.40697,2457.1,2456.7,4.5546]
[1725465904278,0.40698,2457.0,2456.7,1.3468]
[1725465904482,3.2078,2457.3,2456.7,1.3468]
[1725465904684,4.22514,2457.3,2456.8,0.40701]
[1725465904877,0.40701,2456.8,2456.7,1.3468]
[1725465905277,0.40701,2456.8,2456.3,3.2078]
[1725465905278,4.0704,2456.8,2456.3,3.2078]
[1725465905475,3.2078,2456.9,2456.3,3.2078]
[1725465905674,3.2078,2457.0,2456.3,3.2078]
[1725465905875,0.40707,2456.4,2456.3,3.2078]
[1725465906082,0.40712,2456.2,2456.0,2.0365]
[1725465906381,0.40711,2456.2,2456.0,2.0365]
[1725465906783,0.00609917,2456.3,2455.8,0.40716]
[1725465906983,0.40711,2456.2,2456.0,1.3495]
[1725465907173,0.00609917,2456.3,2456.0,1.3495]
[1725465907487,3.2078,2457.0,2456.1,5.089]
[1725465907778,3.2078,2457.0,2456.4,3.2078]
[1725465907979,0.40704,2456.6,2456.1,8.32428761]
[1725465908178,3.2078,2457.0,2456.2,0.40709]
[1725465908379,0.40707,2456.5,2456.2,0.40709]
[1725465908579,0.00609917,2456.6,2456.1,8.49193875]
[1725465908780,0.40707,2456.4,2456.2,0.4071]
[1725465909081,0.40711,2456.2,2456.1,0.00609917]
[1725465909286,0.4071,2456.3,2456.1,0.00609917]
[1725465909481,0.40711,2456.2,2456.1,0.00609917]
[1725465909982,12.51387,2456.2,2456.1,9.17e-06]
[1725465910179,11.49609,2456.2,2456.1,9.17e-06]
[1725465910379,12.51387,2456.2,2456.1,9.17e-06]
[1725465911885,12.51387,2456.2,2455.1,1.3075]
[1725465911886,0.40727,2455.2,2455.1,0.6386]
[1725465912184,0.40732,2454.9,2454.8,3.2078]
[1725465912384,3.2078,2455.4,2454.8,3.2078]
[1725465912582,3.2078,2455.1,2454.4,0.7974]
[1725465912887,2.93,2455.2,2454.6,0.40736]
[1725465912888,0.00609917,2455.0,2454.6,0.40736]
[1725465913087,0.00609917,2455.0,2454.7,4.43095]
[1725465913277,0.00609917,2455.0,2454.9,0.40732]
[1725465913785,0.00609917,2455.0,2454.9,4.0736]
[1725465913979,0.00609917,2455.0,2454.8,0.8483]
[1725465914585,0.40732,2454.9,2454.8,0.8483]
[1725465915287,0.00609917,2455.0,2454.7,0.8158]
[1725465915583,0.00609917,2455.0,2454.8,3.61513]
[1725465915784,0.00609917,2455.0,2454.8,3.2078]
[1725465916087,0.40732,2454.9,2454.7,0.8158]
[1725465916283,0.00609917,2455.0,2454.7,0.8158]
[1725465916491,0.40734,2454.8,2454.7,0.8158]
[1725465916893,0.40737,2454.6,2454.5,0.8013]
[1725465917882,4.48178,2454.6,2454.3,3.2078]
[1725465918082,0.40738,2454.6,2454.3,3.2078]
[1725465918284,0.40747,2454.0,2453.8,4.0013]
[1725465918480,0.095,2455.1,2453.9,4.0744]
[1725465918686,3.2078,2457.6,2455.5,3.2078]
[1725465919002,0.20867126,2457.4,2456.7,3.2078]
[1725465919183,0.20867126,2457.4,2456.5,3.2078]
[1725465919184,2.9312,2457.1,2456.5,3.2078]
[1725465919386,0.0012,2457.1,2456.5,3.2078]
[1725465919585,0.00611197,2457.0,2456.9,3.2078]
[1725465919990,0.00611197,2457.0,2456.9,13.2782]
[1725465920189,0.00611197,2457.0,2456.9,7.2782]
[1725465920388,0.00611197,2457.0,2456.9,3.2078]
[1725465920592,0.00611197,2457.0,2456.7,0.8554]
[1725465920784,0.00611197,2457.0,2456.8,3.2078]
[1725465921088,0.40701,2456.8,2456.6,0.00611197]
[1725465921286,0.00611197,2457.0,2456.6,0.00611197]
[1725465921287,0.40702,2456.7,2456.6,0.00611197]
[1725465921685,10.47742,2456.7,2456.6,0.00611197]
[1725465922589,0.40702,2456.7,2456.6,0.00611197]
[1725465922895,0.00611197,2457.0,2456.6,0.00611197]
[1725465923288,7.2782,2456.9,2456.6,0.00611197]
[1725465923487,0.40702,2456.7,2456.6,0.00611197]
[1725465923982,10.47742,2456.7,2456.6,0.00611197]
[1725465924583,11.49499,2456.7,2456.6,0.00611197]
[1725465924794,10.47742,2456.7,2456.6,0.00611197]
[1725465925182,11.49499,2456.7,2456.6,1.97e-06]
[1725465925385,15.44256,2456.7,2456.6,1.97e-06]
[1725465925581,15.44256,2456.7,2455.5,3.2078]
[1725465925582,0.40715,2456.0,2455.5,3.2078]
[1725465925798,0.40717,2455.9,2455.5,3.2078]
[1725465925986,0.4071,2456.3,2455.8,3.2078]
[1725465926288,0.40707,2456.5,2456.1,3.2078]
[1725465926503,0.00611197,2456.5,2456.1,3.2078]
[1725465926686,0.20729942,2456.5,2456.1,3.2078]
[1725465926891,0.40711,2456.2,2456.1,3.2078]
[1725465927394,4.47831,2456.2,2456.1,3.2078]
[1725465927589,11.49609,2456.2,2456.1,3.2078]
[1725465927790,0.40718,2455.8,2455.6,3.2078]
[1725465927993,0.40719,2455.7,2455.6,3.2078]
[1725465928388,1.0179,2455.9,2455.4,0.7931]
[1725465928691,2.93,2456.3,2455.4,0.7931]
[1725465928894,2.93,2456.3,2455.7,3.2078]
[1725465929196,0.40713,2456.1,2455.7,3.61498]
[1725465929397,0.40717,2455.9,2455.7,3.2078]
[1725465929690,0.39211721,2455.8,2455.7,3.2078]
[1725465930090,0.39211721,2455.8,2455.4,0.7931]
[1725465930091,4.072,2455.8,2455.3,3.2078]
[1725465930291,0.40727,2455.3,2454.9,5.18782]
[1725465930486,0.40726,2455.3,2454.9,4.7805]
[1725465930799,2.93,2456.0,2454.9,4.0016]
[1725465930800,0.40731,2455.0,2454.9,4.0016]
[1725465931093,0.4073,2455.1,2454.9,4.0016]
[1725465931500,0.40731,2455.0,2454.9,4.0016]
[1725465931700,0.40731,2455.0,2454.9,3.2078]
[1725465931902,0.40731,2455.0,2454.4,0.8116]
[1725465931903,0.40738,2454.6,2454.4,4.854]
[1725465932195,0.40739,2454.5,2454.4,4.0424]
[1725465932592,0.40738,2454.6,2454.4,4.0424]
[1725465932793,0.40741,2454.4,2454.1,3.2078]
[1725465933002,0.40743,2454.3,2454.1,3.2078]
[1725465933503,0.40744,2454.2,2454.1,3.2078]
[1725465933700,0.40744,2454.2,2453.9,0.7828]
[1725465933895,0.40745,2454.2,2453.9,0.7828]
[1725465934092,0.40746,2454.1,2453.9,0.7828]
[1725465934395,6.1378,2454.9,2453.9,0.7828]
[1725465934600,0.40747,2454.1,2453.7,4.0221]
[1725465935598,2.93,2454.4,2453.7,3.2078]
[1725465935804,2.93,2454.1,2453.3,3.2078]
[1725465936101,0.00611197,2453.9,2453.3,3.2078]
[1725465936402,0.00611197,2453.9,2453.7,3.2078]
[1725465936602,0.00611197,2453.9,2453.7,3.61531]
[1725465936807,0.00611197,2453.9,2453.8,4.48271]
[1725465936996,0.00611197,2453.9,2453.8,4.8618]
[1725465937203,0.00611197,2453.9,2453.8,5.26931]
[1725465937402,0.00611197,2453.9,2453.8,4.8618]
[1725465938299,0.41360197,2453.9,2453.8,0.7866]
[1725465938800,0.40751,2453.8,2453.7,3.2078]
[1725465939504,10.48271,2453.8,2453.7,3.2078]
[1725465939811,0.40751,2453.8,2453.7,3.2078]
[1725465940105,4.48271,2453.8,2453.7,3.2078]
[1725465940398,5.50148,2453.8,2453.7,3.2078]
[1725465940902,0.40759,2453.3,2453.2,3.2078]
[1725465941900,0.40758,2453.4,2453.2,3.2078]
[1725465942109,1.02488197,2453.9,2453.2,3.6154]
[1725465942303,0.40754,2453.6,2453.5,3.2078]
[1725465942499,0.40753,2453.7,2453.5,3.2078]
[1725465942700,0.40754,2453.6,2453.5,3.2078]
[1725465942996,4.076,2453.6,2453.4,3.2078]
[1725465943203,1.21850599,2453.7,2453.1,3.2078]
[1725465943396,1.42663,2453.2,2453.1,3.2078]
[1725465943902,0.40761,2453.2,2453.1,3.2078]
[1725465944108,5.50263,2453.2,2453.1,3.2078]
[1725465944304,1.01906,2453.1,2452.7,3.2078]
[1725465944609,0.40759,2453.3,2453.0,3.2078]
[1725465944903,0.40762,2453.1,2453.0,3.2078]
[1725465945502,1.42668,2453.1,2453.0,3.2078]
[1725465945701,5.50348,2453.1,2453.0,3.2078]
[1725465945898,1.01918,2452.9,2452.7,3.2078]
[1725465946106,0.40772,2452.5,2452.4,0.8218]
[1725465946298,0.40776,2452.3,2452.2,3.2078]
[1725465946805,0.00611197,2452.5,2452.2,3.2078]
[1725465946999,0.00611197,2452.5,2452.3,0.40775]
[1725465947200,0.00611197,2452.5,2452.2,3.61557]
[1725465947516,0.00611197,2452.5,2452.2,3.2078]
[1725465947808,0.40775,2452.4,2452.2,3.2078]
[1725465948005,0.40776,2452.3,2452.2,3.2078]
[1725465948407,1.42716,2452.3,2452.2,3.2078]
[1725465949202,5.50476,2452.3,2452.2,3.2078]
[1725465949606,1.01944,2452.2,2451.8,3.2078]
[1725465949998,0.40782,2451.9,2451.8,3.2078]
[1725465950907,0.40782,2451.9,2451.8,7.2862]
[1725465951100,2.93611197,2452.5,2451.8,7.2862]
[1725465951101,1.02544197,2452.5,2451.8,7.2862]
[1725465951301,0.40777,2452.3,2452.2,3.2078]
[1725465951805,1.42717,2452.3,2452.2,3.2078]
[1725465952010,1.42738,2451.9,2451.8,3.2078]
[1725465952902,0.40782,2451.9,2451.8,3.2078]
[1725465953299,0.40792,2451.4,2451.2,3.2078]
[1725465953700,1.22284891,2451.7,2451.2,3.2078]
[1725465954011,1.42756,2451.6,2451.5,3.2078]
[1725465954504,0.20317891,2451.7,2451.4,3.2078]
[1725465954700,1.42762,2451.5,2451.4,3.2078]
[1725465954899,1.63045222,2451.5,2451.4,3.2078]
[1725465955108,1.01959,2451.9,2451.4,7.287]
[1725465955311,0.40788,2451.6,2451.4,3.2078]
[1725465955611,0.40789,2451.5,2451.4,3.2078]
[1725465955807,0.40787,2451.7,2451.4,3.2078]
[1725465956002,0.40789,2451.6,2451.4,3.2078]
[1725465956398,2.82,2452.4,2451.4,3.2078]
[1725465956613,0.40779,2452.1,2451.9,3.2078]
[1725465956905,0.60798194,2452.0,2451.9,3.2078]
[1725465957106,0.4078,2452.0,2451.9,3.2078]
[1725465957303,1.01952,2452.0,2451.5,3.2078]
[1725465957504,0.40787,2451.6,2451.5,3.2078]
[1725465958399,2.82,2452.1,2451.5,7.287]
[1725465958603,2.82,2452.1,2451.8,3.2078]
[1725465958799,3.01938644,2452.1,2451.6,3.2078]
[1725465959004,0.40789,2451.5,2451.3,3.2078]
[1725465959410,1.0196,2451.8,2451.3,3.2078]
[1725465959605,0.4079,2451.4,2451.3,3.2078]
[1725465959804,0.4079,2451.5,2451.3,3.2078]
[1725465960005,1.42767,2451.4,2451.3,3.2078]
[1725465960613,0.40795,2451.1,2451.0,0.7819]
[1725465961003,1.42784,2451.1,2451.0,0.7819]
[1725465961310,0.40796,2451.1,2451.0,4.08]
[1725465961511,0.40795,2451.1,2450.9,3.2078]
[1725465961704,2.82,2451.5,2450.9,13.2878]
[1725465961705,0.00611197,2451.2,2450.9,13.2878]
[1725465961902,0.00611197,2451.2,2451.0,0.8528]
[1725465962104,0.41405197,2451.2,2451.0,4.9328]
[1725465962313,0.41405197,2451.2,2450.9,3.61578]
[1725465962314,1.42791,2451.0,2450.9,3.00780001]
[1725465962611,1.63382198,2451.0,2450.9,3.00780001]
[1725465962818,6.73376198,2451.0,2450.9,3.00780001]
[1725465963309,6.52785,2451.0,2450.9,2.80780001]
[1725465963508,0.00611197,2451.2,2450.9,12.88780001]
[1725465963705,0.20638112,2452.1,2451.0,4.892]
[1725465963904,7.04714,2452.5,2451.6,3.2078]
[1725465964105,2.82,2452.2,2451.6,3.2078]
[1725465964409,3.22778,2452.2,2452.1,3.2078]
[1725465964618,7.10410801,2452.2,2451.5,3.2078]
[1725465964910,0.7943,2452.6,2451.9,0.00611197]
[1725465964911,1.42732,2452.0,2451.9,0.00611197]
[1725465965121,8.32572,2452.0,2451.9,1.97e-06]
[1725465965312,14.53128523,2452.0,2451.9,1.97e-06]
[1725465967111,7.51176523,2452.0,2451.9,1.97e-06]
[1725465967814,3.43336523,2452.0,2451.9,1.97e-06]
[1725465968318,16.31176523,2452.0,2451.4,3.2078]
[1725465968520,0.40789,2451.5,2451.4,3.2078]
[1725465968910,2.82,2451.6,2451.4,3.2078]
[1725465969103,3.22788,2451.6,2451.4,3.2078]
[1725465969615,0.40789,2451.5,2451.4,3.2078]
[1725465969809,2.82,2451.6,2451.4,3.2078]
[1725465970005,3.22788,2451.6,2451.4,3.2078]
[1725465970206,0.40789,2451.5,2451.4,3.2078]
[1725465970617,2.82,2451.6,2451.4,3.2078]
[1725465970823,0.40786,2451.7,2451.4,3.2078]
[1725465971119,0.40784,2451.8,2451.4,3.2078]
[1725465971319,0.40784,2451.8,2451.7,3.2078]
[1725465972015,0.4079,2451.5,2451.4,3.2078]
[1725465973113,0.40794,2451.2,2451.1,4.0459]
[1725465973319,0.40793,2451.3,2451.1,8.1259]
[1725465973516,0.40793,2451.3,2451.1,4.0459]
[1725465974120,0.40791,2451.4,2451.1,4.0459]
[1725465974324,0.40793,2451.3,2451.1,4.0459]
[1725465974524,0.40791,2451.4,2451.1,4.0459]
[1725465974709,0.40791,2451.4,2451.1,4.45385]
[1725465975015,0.40788,2451.6,2451.1,8.1251]
[1725465975227,0.40787,2451.6,2451.5,3.2078]
[1725465975923,0.20556523,2452.0,2451.5,7.287]
[1725465976113,0.40783,2451.9,2451.5,3.2078]
[1725465976317,0.40785,2451.8,2451.6,0.40786]
[1725465976623,0.0012,2452.1,2452.0,0.4078]
[1725465976815,0.40771,2452.6,2452.0,3.21391197]
[1725465977021,2.82,2453.0,2452.5,3.2078]
[1725465977316,1.01921,2452.8,2452.2,3.2078]
[1725465977522,2.82,2453.0,2452.5,3.2078]
[1725465977719,1.42721,2452.2,2452.1,3.2078]
[1725465977920,0.40779,2452.1,2452.0,0.00611197]
[1725465979214,1.42727,2452.1,2452.0,0.00611197]
[1725465979420,9.34515,2452.1,2452.0,0.00611197]
[1725465979816,15.34515,2452.1,2452.0,0.00611197]
[1725465980018,11.26675,2452.1,2452.0,1.97e-06]
[1725465980221,15.34515,2452.1,2452.0,1.97e-06]
[1725465983026,9.34515,2452.1,2452.0,1.97e-06]
[1725465983927,5.26675,2452.1,2452.0,1.97e-06]
[1725465984525,0.40779,2452.1,2452.0,1.97e-06]
[1725465984727,0.20167638,2452.4,2452.0,3.20780197]
[1725465985030,0.40779,2452.1,2452.0,1.97e-06]
[1725465985226,1.0194,2452.3,2452.0,1.97e-06]
[1725465985227,0.40778,2452.2,2452.0,3.61560197]
[1725465985631,0.40774,2452.4,2452.1,4.0784]
[1725465985821,0.40774,2452.4,2452.3,3.2078]
[1725465986026,1.0192,2452.8,2452.3,7.2854]
[1725465986228,0.40772,2452.6,2452.4,0.40773]
[1725465986428,0.40772,2452.5,2452.4,0.7905]
[1725465986844,0.40772,2452.5,2452.4,4.8681]
[1725465987350,0.40772,2452.5,2452.3,3.2078]
[1725465987351,1.42709,2452.4,2452.3,3.2078]
[1725465987544,6.52404,2452.4,2452.3,3.2078]
[1725465987848,0.40779,2452.1,2452.0,3.20780197]
[1725465988035,0.40774,2452.4,2452.0,3.61559197]
[1725465988240,0.40778,2452.2,2452.0,3.61559197]
[1725465988541,0.40779,2452.1,2452.0,3.20780197]
[1725465989438,1.42727,2452.1,2452.0,3.20780197]
[1725465990244,2.44675,2452.1,2452.0,3.20780197]
[1725465991246,15.34515,2452.1,2452.0,1.97e-06]
[1725465991740,3.60649595,2452.5,2452.0,1.97e-06]
[1725465991940,1.01923,2452.7,2452.3,3.2078]
[1725465992142,1.01927,2452.6,2452.2,3.2078]
[1725465992341,1.42716,2452.3,2452.2,3.2078]
[1725465992546,1.62725134,2452.3,2452.2,3.2078]
[1725465993843,3.83921,2452.8,2452.2,3.2078]
[1725465994049,3.83921,2452.8,2452.3,0.818]
[1725465994050,0.40774,2452.4,2452.3,0.818]
[1725465995837,4.23303197,2453.0,2452.3,10.8956]
[1725465996039,0.00611197,2453.0,2452.9,3.2078]
[1725465996243,0.41375197,2453.0,2452.9,3.2078]
[1725465996450,0.00611197,2453.0,2452.9,7.69226]
[1725465996644,4.111,2453.6,2452.9,7.2846]
[1725465996849,1.01866,2454.1,2453.5,3.2078]
[1725465997051,0.4075,2453.9,2453.8,3.2078]
[1725465997249,4.22629,2454.5,2453.8,3.6153]
[1725465997447,0.40747,2454.0,2453.9,3.2078]
[1725465998653,0.40751,2453.8,2453.7,0.00611197]
[1725465999250,1.42628,2453.8,2453.7,0.00611197]
[1725465999550,0.40751,2453.8,2453.7,0.00611197]
[1725466000455,4.48271,2453.8,2453.7,0.00611197]
[1725466000754,0.40751,2453.8,2453.7,0.00611197]
[1725466002052,0.4075,2453.9,2453.7,0.00611197]
[1725466002254,0.40751,2453.8,2453.7,3.21391197]
[1725466002453,1.42628,2453.8,2453.7,0.00611197]
[1725466002656,5.50148,2453.8,2453.7,0.00611197]
[1725466003052,15.34025,2453.8,2453.7,1.97e-06]
[1725466005458,1.01906,2453.1,2452.8,0.205]
[1725466005660,0.40769,2452.7,2452.6,3.2078]
[1725466005960,1.42692,2452.7,2452.6,3.2078]
[1725466006158,1.42692,2452.7,2452.1,3.2078]
[1725466006159,0.40777,2452.2,2452.1,3.2078]
[1725466006359,0.40776,2452.3,2452.1,3.2078]
[1725466006553,0.00611197,2452.4,2452.1,3.2078]
[1725466006754,0.40776,2452.3,2452.1,3.2078]
[1725466006956,0.00611197,2452.4,2452.1,3.2078]
[1725466007157,0.00611197,2452.4,2452.3,0.40776]
[1725466007361,0.00611197,2452.4,2452.3,0.8628]
[1725466007560,0.00611197,2452.4,2452.3,10.9404]
[1725466007762,0.41385197,2452.4,2452.3,0.8628]
[1725466008357,5.51080197,2452.4,2452.3,0.8628]
[1725466008564,0.40777,2452.2,2452.1,3.2078]
[1725466010559,0.4078,2452.1,2451.8,4.0706]
[1725466010752,1.01944,2452.2,2451.8,4.0706]
[1725466010958,1.0194,2452.3,2451.8,4.0706]
[1725466011157,0.40777,2452.2,2451.9,3.2078]
[1725466011360,0.4078,2452.1,2451.9,3.2078]
[1725466011562,0.4078,2452.0,2451.9,3.2078]
[1725466011864,1.42732,2452.0,2451.9,3.2078]
[1725466012258,3.2278,2452.0,2451.9,3.2078]
[1725466012753,0.4078,2452.0,2451.9,3.2078]
[1725466014361,0.40783,2451.9,2451.7,1.6534]
[1725466014560,0.40784,2451.8,2451.7,1.6534]
[1725466014766,0.40784,2451.8,2451.7,4.8612]
[1725466015065,0.40784,2451.8,2451.7,1.6534]
[1725466015461,0.40784,2451.8,2451.7,4.8612]
[1725466015860,0.40784,2451.8,2451.7,1.6534]
[1725466016063,0.40784,2451.8,2451.7,4.8612]
[1725466016261,5.098,2451.8,2451.3,3.2078]
[1725466016561,1.01958,2451.9,2451.2,0.8255]
[1725466016562,0.40792,2451.3,2451.2,0.8255]
[1725466016771,0.40792,2451.3,2451.2,4.0333]
[1725466017069,0.40791,2451.4,2451.2,4.0333]
[1725466017262,0.00611197,2452.4,2452.3,0.40776]
[1725466017462,1.01913,2453.0,2452.3,3.2078]
[1725466017762,0.4077,2452.7,2452.5,0.40772]
[1725466018067,1.01903,2453.2,2452.4,0.8339]
[1725466018068,0.40772,2452.5,2452.4,0.8339]
[1725466018263,1.42703,2452.5,2452.4,0.8339]
[1725466018862,0.40776,2452.3,2452.2,0.79811197]
[1725466019161,0.40776,2452.3,2452.2,0.00611197]
[1725466019956,0.40771,2452.6,2452.2,0.00611197]
[1725466020164,0.40773,2452.5,2452.3,0.40775]
[1725466020367,0.40775,2452.4,2452.2,0.00611197]
[1725466020668,0.40776,2452.3,2452.2,0.00611197]
[1725466021167,0.40774,2452.4,2452.2,0.41387197]
[1725466021671,0.40773,2452.5,2452.3,0.40775]
[1725466021967,1.02537197,2452.7,2452.2,0.00611197]
[1725466022168,0.40771,2452.6,2452.4,0.40773]
[1725466022364,0.40772,2452.5,2452.3,0.40775]
[1725466022563,0.00611197,2452.7,2452.3,0.40775]
[1725466022564,0.40774,2452.4,2452.3,0.40775]
[1725466022766,0.40773,2452.5,2452.3,0.40774]
[1725466023068,0.40773,2452.5,2452.2,0.00611197]
[1725466023069,0.40774,2452.4,2452.2,0.00611197]
[1725466023464,0.40773,2452.5,2452.2,4.08371197]
[1725466023659,1.02535197,2452.7,2452.4,0.40773]
[1725466023866,0.40773,2452.5,2452.4,0.40773]
[1725466024061,0.00611197,2452.7,2452.6,0.40771]
[1725466024261,0.00611197,2452.7,2452.6,6.40771]
[1725466024463,0.41380197,2452.7,2452.6,10.0776]
[1725466024660,0.40771,2452.6,2452.5,1.5859]
[1725466024857,1.42703,2452.5,2452.4,3.2078]
[1725466025066,0.40772,2452.5,2452.4,3.2078]
[1725466025565,1.42703,2452.5,2452.4,3.2078]
[1725466025767,1.42716,2452.3,2452.2,0.00611197]
[1725466025962,1.42716,2452.3,2452.2,3.21391197]
[1725466026157,1.42716,2452.3,2452.2,0.00611197]
[1725466026365,2.44656,2452.3,2452.2,0.00611197]
[1725466026569,4.24716,2452.3,2452.2,0.00611197]
[1725466027166,8.32476,2452.3,2452.2,0.00611197]
[1725466027563,9.34416,2452.3,2452.2,0.00611197]
[1725466028175,15.34416,2452.3,2452.2,1.97e-06]
[1725466028572,0.40792,2451.3,2451.2,0.205]
[1725466028774,0.40791,2451.4,2451.2,3.2078]
[1725466029174,1.01978,2451.4,2451.0,0.8651]
[1725466029475,0.40799,2450.9,2450.8,4.0731]
[1725466030071,2.82,2451.2,2450.8,4.0731]